[Event "WCCC U10 2019"]
[Site "Weifang"]
[Date "2019.08.28"]
[Round "7.9"]
[White "Lu, Miaoyi"]
[Black "Han, Johnathan"]
[Result "1/2-1/2"]
[ECO "E12"]
[WhiteElo "1950"]
[BlackElo "1579"]
[Annotator "NA RC"]
[PlyCount "97"]
[EventDate "2019.08.21"]
[EventType "swiss"]
[EventCountry "CHN"]
[SourceTitle "playchess.com"]
[Source "ChessBase"]
[SourceQuality "1"]
[TimeControl "40/5400+30:1800+30"]

{[%evp 15,83,56,32767,32767,11,12,21,39,44,23,52,32767,32767,16,60,49,64,38,32767,32767,32767,35,40,30,45,34,26,25,32767,32767,41,32767,47,38,25,33,29,-425,32767,-450,-566,-508,32767,32767,32767,32767,0,0,0,0,0,0,0,0,0,0,0,32767,32767,32767,32767,0,32767,32767,32767,32767,32767,0,0,0]} 1. d4 {[%emt 0:00:00]} Nf6 {[%emt 0:00:00]} 2. c4 {[%emt 0:00:00]} b6 {[%emt 0:00:09]} 3. d5 {[%emt 0:09:47]} e6 {[%emt 0:01:29]} 4. a3 {[%emt 0:02:26]} Bb7 {[%emt 0:00:35]} 5. Nc3 {[%emt 0:00:00]} Be7 {[%emt 0:05:42]} 6. e4 {[%emt 0:00:00]} d6 {[%emt 0:02:41]} 7. Nf3 {[%emt 0:04:30]} O-O {[%emt 0:01:50]} 8. Bd3 {[%emt 0:00:00]} Nbd7 {[%emt 0:02:45]} 9. b4 {[%emt 0:00:29] E12: Queen's Indian: Unusual White 4th moves, 4 a3, 4 Nc3 Bb7 5 a3 and 4 Nc3 Bb7} (9. O-O Nc5 10. Bc2 a5 11. Re1 Nfd7 12. Bd2 Bf6 13. b4 Na6 14. Rb1 axb4 15. axb4 Ne5 16. Nxe5 Bxe5 {1-0 (50) Klekowski,M (2498)-Miton,K (2584) Katowice 2017}) 9... exd5 {[%emt 0:02:19]} 10. exd5 {[%emt 0:00:45]} Re8 {[%emt 0:01:23]} 11. O-O {[%emt 0:00:50]} Bf8 $146 {[%emt 0:01:54]} ({Predecessor:} 11... Nf8 12. Nd4 Ng6 13. Nf5 c6 14. Bc2 cxd5 15. cxd5 Bf8 16. Bb2 Rc8 {0-1 (55) Brcar,A (2039)-Zirkelbach,M (1842) Novo Mesto 2013}) 12. h3 {[%emt 0:03:01]} g6 {[%emt 0:01:58]} 13. Bb2 {[%emt 0:02:40]} Bg7 {[%emt 0:02:03]} 14. Qd2 {[%emt 0:04:12]} Qe7 {[%emt 0:03:02]} 15. Rfe1 {[%emt 0:08:06]} Qf8 {[%emt 0:00:37]} 16. Nb5 {[%emt 0:01:58]} Rec8 {[%emt 0:07:29]} 17. Re2 {[%emt 0:07:54]} a6 {[%emt 0:00:48]} 18. Nbd4 {[%emt 0:00:59]} Re8 {[%emt 0:01:55]} 19. Rae1 {[%emt 0:01:17]} Rxe2 {[%emt 0:01:24]} 20. Rxe2 {[%emt 0:00:52]} Re8 {[%emt 0:01:08]} 21. Qe1 {[%emt 0:06:37]} Rxe2 {[%emt 0:04:24]} 22. Qxe2 {[%emt 0:00:35]} Nh5 {[%emt 0:04:07]} 23. g3 {[%emt 0:03:24]} Ne5 {[%emt 0:04:06]} 24. Nxe5 {[%emt 0:02:28]} Bxe5 {[%emt 0:01:46]} 25. Kh2 {[%emt 0:04:59]} Qh6 {[%emt 0:05:58]} 26. Nc6 $2 {[%emt 0:07:38]} (26. Nf3 $11 {and White is okay.} Bxb2 27. Qxb2) 26... Nf4 {[%emt 0:08:42]} 27. Qg4 {[%emt 0:13:19]} Nxd3 {[%emt 0:01:02]} 28. Bxe5 {[%emt 0:03:01]} Nxe5 {[%emt 0:03:17]} 29. Nxe5 {[%emt 0:00:45]} dxe5 {[%emt 0:00:20]} 30. Qd7 {[%emt 0:00:53] [#]} Qf8 {[%emt 0:02:16]} (30... b5 $1 $17 31. Qxc7 (31. cxb5 Qd2) 31... Qd2) 31. Qxc7 {[%emt 0:00:38]} Qc8 {[%emt 0:00:26]} 32. Qxb6 {[%emt 0:01:01]} Kg7 {[%emt 0:15:36]} 33. a4 {[%emt 0:03:25]} Ba8 {[%emt 0:01:37]} 34. Qa7 $1 {[%emt 0:02:12]} Kf8 {[%emt 0:07:52]} 35. b5 {[%emt 0:05:23]} axb5 {[%emt 0:00:31]} 36. axb5 {[%emt 0:00:04]} Ke8 {[%emt 0:02:28]} 37. f3 {[%emt 0:01:20]} Qb7 {[%emt 0:00:56]} 38. Qe3 {[%emt 0:00:47]} Qc7 {[%emt 0:00:26]} 39. Qa3 {[%emt 0:00:34]} Bb7 {[%emt 0:00:27]} 40. Qa7 {[%emt 0:00:23]} Kd8 {[%emt 0:00:23]} 41. d6 {[%emt 0:13:21]} Qxd6 {[%emt 0:20:13]} 42. Qxb7 $11 {[%emt 0:02:44]} Qd2+ {[%emt 0:00:25]} 43. Kg1 {[%emt 0:00:44]} Qe1+ {[%emt 0:00:07]} 44. Kg2 {[%emt 0:00:07]} Qe2+ {[%emt 0:00:14]} 45. Kg1 {[%emt 0:00:06]} Qe1+ {[%emt 0:00:08]} 46. Kg2 {[%emt 0:02:14]} Qe2+ {[%emt 0:00:08]} 47. Kg1 {[%emt 0:00:14]} Qe1+ {[%emt 0:00:21]} 48. Kg2 {[%emt 0:00:35]} Qe2+ {[%emt 0:00:12]} 49. Kg1 {[%emt 0:00:33]} 1/2-1/2

[Event "WCCC U10 2019"]
[Site "Weifang"]
[Date "2019.08.28"]
[Round "7.10"]
[White "Woodward, Andy"]
[Black "Tenuunbold, Battulga"]
[Result "1/2-1/2"]
[ECO "D44"]
[WhiteElo "1522"]
[BlackElo "1754"]
[Annotator "NA RC"]
[PlyCount "49"]
[EventDate "2019.08.21"]
[EventType "swiss"]
[EventCountry "CHN"]
[SourceTitle "playchess.com"]
[Source "ChessBase"]
[SourceQuality "1"]
[TimeControl "40/5400+30:1800+30"]

1. d4 {[%emt 0:00:00]} d5 {[%emt 0:00:10]} 2. c4 {[%emt 0:00:00]} c6 {[%emt 0:00:30]} 3. Nf3 {[%emt 0:00:00]} Nf6 {[%emt 0:00:49]} 4. Nc3 {[%emt 0:00:00]} e6 {[%emt 0:00:39]} 5. Bg5 {[%emt 0:00:00]} dxc4 {[%emt 0:00:29]} 6. e4 {[%emt 0:00:00]} b5 {[%emt 0:00:28]} 7. e5 {[%emt 0:00:03]} h6 {[%emt 0:00:31]} 8. Bh4 {[%emt 0:00:05]} g5 {[%emt 0:00:26]} 9. Nxg5 {[%emt 0:00:06]} hxg5 {[%emt 0:00:31]} 10. Bxg5 {[%emt 0:00:02]} Be7 {[%emt 0:00:27]} 11. exf6 {[%emt 0:00:22]} Bxf6 {[%emt 0:00:32]} 12. Bxf6 {[%emt 0:00:22]} Qxf6 {[%emt 0:01:44]} 13. g3 {[%emt 0:01:08]} Bb7 {[%emt 0:00:32]} 14. Bg2 {[%emt 0:00:07]} Na6 {[%emt 0:01:06]} 15. Nxb5 {[%emt 0:12:00]} O-O-O {[%emt 0:01:45]} 16. Qa4 {[%emt 0:13:19]} cxb5 {[%emt 0:13:50]} 17. Bxb7+ {[%emt 0:00:04]} Kxb7 {[%emt 0:00:40]} 18. Qxb5+ {[%emt 0:00:02]} Ka8 {[%emt 0:00:55]} 19. Qc6+ {[%emt 0:04:28]} Kb8 {[%emt 0:00:35]} 20. Qb5+ {[%emt 0:02:13]} Ka8 {[%emt 0:02:50]} 21. Qc6+ {[%emt 0:00:05]} Kb8 {[%emt 0:00:13]} 22. Qb5+ {[%emt 0:00:05]} Ka8 {[%emt 0:00:58]} 23. Qc6+ {[%emt 0:00:05]} Kb8 {[%emt 0:00:04]} 24. Qb5+ {[%emt 0:00:04]} Ka8 {[%emt 0:00:03]} 25. Qc6+ {[%emt 0:00:06]} 1/2-1/2

[Event "WCCC U10 2019"]
[Site "Weifang"]
[Date "2019.08.29"]
[Round "8.1"]
[White "Ilamparthi A R"]
[Black "Wongso, Steve"]
[Result "1-0"]
[ECO "D78"]
[WhiteElo "1984"]
[BlackElo "1765"]
[Annotator "NA"]
[PlyCount "65"]
[EventDate "2019.08.21"]
[EventType "swiss"]
[EventCountry "CHN"]
[SourceTitle "playchess.com"]
[Source "ChessBase"]
[SourceQuality "1"]
[TimeControl "40/5400+30:1800+30"]

{[%evp 8,60,20,32767,32767,32767,32767,32767,32767,32767,-23,-28,-30,-72,13,31,32,12,20,26,33,18,25,32767,-6,-32,32767,32767,32767,32767,32767,32767,32767,32767,32767,32767,32767,55,151,169,32767,32767,245,281,32767,32767,32767,492,32767,32767,854,900,32767,1062,1088]} 1. Nf3 {[%emt 0:00:00]} Nf6 {[%emt 0:00:00]} 2. g3 {[%emt 0:00:00]} g6 {[%emt 0:00:00]} 3. Bg2 {[%emt 0:00:05]} Bg7 {[%emt 0:00:00]} 4. O-O {[%emt 0:00:08]} O-O {[%emt 0:00:08]} 5. d4 {[%emt 0:00:33]} d5 {[%emt 0:00:10]} 6. c4 {[%emt 0:00:53]} dxc4 $146 {[%emt 0:00:10]} ({Predecessor:} 6... c6 7. Nc3 {½-½ (10) Lajthajm,B (2427)-Obodchuk,A (2377) Backi Petrovac 2017}) 7. Nc3 {[%emt 0:01:54]} c6 {[%emt 0:00:07]} 8. Ne5 {[%emt 0:01:22]} Be6 {[%emt 0:17:39]} 9. e4 {[%emt 0:05:40]} Nbd7 {[%emt 0:04:20]} 10. Qe2 {[%emt 0:12:10] D78: Fianchetto Grünfeld: 6 0-0 c6} c5 {[%emt 0:06:13]} (10... Nxe5 $17 11. dxe5 Nd7) 11. Nxd7 {[%emt 0:01:08]} Qxd7 {[%emt 0:00:32]} 12. d5 {[%emt 0:00:15]} Bh3 {[%emt 0:00:20]} 13. Qxc4 {[%emt 0:00:42]} Bxg2 {[%emt 0:00:08]} 14. Kxg2 {[%emt 0:00:05]} Rac8 {[%emt 0:17:26]} 15. e5 {[%emt 0:17:14]} b5 $1 {[%emt 0:00:45]} 16. Qd3 {[%emt 0:00:11]} Ng4 {[%emt 0:00:35]} 17. f4 {[%emt 0:00:35]} b4 {[%emt 0:00:19]} 18. Ne4 {[%emt 0:01:13]} c4 {[%emt 0:02:55]} 19. Qf3 {[%emt 0:03:27]} Kh8 {[%emt 0:10:30]} 20. Rd1 {[%emt 0:01:10]} Nh6 {[%emt 0:03:06]} 21. Be3 {[%emt 0:02:19]} Nf5 {[%emt 0:00:16]} 22. Bf2 {[%emt 0:01:28]} h5 {[%emt 0:10:47]} ({Black should try} 22... f6) 23. h3 {[%emt 0:05:42]} Nh6 {[%emt 0:02:42]} 24. a3 {[%emt 0:01:01]} a5 {[%emt 0:04:15]} (24... c3 $142) 25. axb4 {[%emt 0:00:20]} axb4 {[%emt 0:00:12]} 26. Ra7 {[%emt 0:00:07]} Qb5 {[%emt 0:00:39]} 27. d6 {[%emt 0:02:58]} Rfd8 {[%emt 0:10:42]} 28. dxe7 {[%emt 0:00:35]} Rxd1 {[%emt 0:00:08]} 29. Qxd1 {[%emt 0:00:05]} Qc6 {[%emt 0:00:59]} 30. Qf3 $18 {[%emt 0:01:39]} Nf5 {[%emt 0:02:41]} 31. Nd6 {[%emt 0:01:26]} Nxe7 {[%emt 0:01:37]} 32. Nxc8 {[%emt 0:00:15]} Qxc8 {[%emt 0:00:10]} 33. Ra8 {[%emt 0:00:04]} 1-0

[Event "WCCC U10 2019"]
[Site "Weifang"]
[Date "2019.08.29"]
[Round "8.2"]
[White "Efimov, Leonid"]
[Black "Sodbilegt, Naranbold"]
[Result "0-1"]
[ECO "A13"]
[WhiteElo "1773"]
[BlackElo "1458"]
[Annotator "NA"]
[PlyCount "116"]
[EventDate "2019.08.21"]
[EventType "swiss"]
[EventCountry "CHN"]
[SourceTitle "playchess.com"]
[Source "ChessBase"]
[SourceQuality "1"]
[TimeControl "40/5400+30:1800+30"]

1. Nf3 {[%emt 0:00:00]} Nf6 {[%emt 0:00:00]} 2. g3 {[%emt 0:00:00]} e6 {[%emt 0:00:00]} 3. Bg2 {[%emt 0:00:06]} c5 {[%emt 0:00:07]} 4. O-O {[%emt 0:01:08]} d5 {[%emt 0:00:18]} 5. c4 {[%emt 0:01:08]} d4 {[%emt 0:00:18]} 6. e3 {[%emt 0:14:02]} Nc6 {[%emt 0:01:03]} 7. exd4 {[%emt 0:06:01]} cxd4 {[%emt 0:01:49]} 8. d3 {[%emt 0:01:18]} Bd6 {[%emt 0:03:39]} 9. Re1 {[%emt 0:19:13]} O-O {[%emt 0:02:15]} 10. Bg5 {[%emt 0:03:53]} h6 {[%emt 0:04:11]} 11. Bxf6 {[%emt 0:01:46]} Qxf6 {[%emt 0:01:39]} 12. Nbd2 {[%emt 0:02:48]} e5 {[%emt 0:08:26]} 13. Ne4 {[%emt 0:00:57]} Qd8 {[%emt 0:05:43]} 14. Nxd6 {[%emt 0:01:37]} Qxd6 {[%emt 0:00:16]} 15. b4 {[%emt 0:03:31]} Nxb4 {[%emt 0:23:19]} 16. Rxe5 {[%emt 0:13:57]} Bg4 {[%emt 0:03:10]} 17. Re4 {[%emt 0:01:37]} f5 {[%emt 0:02:26]} 18. Re1 {[%emt 0:05:05]} f4 {[%emt 0:05:14]} 19. Re4 {[%emt 0:11:11]} Rae8 {[%emt 0:04:33]} 20. Rxe8 {[%emt 0:01:39]} Rxe8 {[%emt 0:00:29]} 21. Qb3 {[%emt 0:01:13]} Kh8 {[%emt 0:04:14]} 22. Rb1 {[%emt 0:03:02]} a5 {[%emt 0:09:16]} 23. a3 {[%emt 0:01:23]} fxg3 {[%emt 0:00:37]} 24. hxg3 {[%emt 0:01:58]} Bxf3 {[%emt 0:05:50]} 25. Bxf3 {[%emt 0:00:39]} Qf6 {[%emt 0:00:55]} 26. Be4 {[%emt 0:01:08]} Rf8 {[%emt 0:04:42]} 27. Rf1 {[%emt 0:01:27]} Na6 {[%emt 0:01:15]} 28. Qxb7 {[%emt 0:01:09]} Nc5 {[%emt 0:01:07]} 29. Qd5 {[%emt 0:00:14]} Nb3 {[%emt 0:01:32]} 30. f4 {[%emt 0:00:54]} Nd2 {[%emt 0:02:46]} 31. Rf2 {[%emt 0:00:23]} Rd8 {[%emt 0:01:22]} 32. Qf5 {[%emt 0:00:47]} Nxe4 {[%emt 0:00:30]} 33. Qxe4 {[%emt 0:00:03]} Rb8 {[%emt 0:01:00]} 34. Kg2 {[%emt 0:00:37]} Rb3 {[%emt 0:01:29]} 35. a4 {[%emt 0:00:12]} Rb8 {[%emt 0:00:43]} 36. Qe5 {[%emt 0:00:25]} Qc6+ {[%emt 0:00:21]} 37. Qe4 {[%emt 0:01:00]} Qxe4+ {[%emt 0:01:14]} 38. dxe4 {[%emt 0:00:02]} Rb4 {[%emt 0:00:12]} 39. c5 {[%emt 0:00:57]} Rxa4 {[%emt 0:00:47]} 40. c6 {[%emt 0:00:50]} Rc4 {[%emt 0:00:10]} 41. Rd2 {[%emt 0:30:17]} a4 {[%emt 0:30:20]} 42. c7 {[%emt 0:00:21]} Rxc7 {[%emt 0:00:00]} 43. Rxd4 {[%emt 0:00:00]} Ra7 {[%emt 0:00:00]} 44. Rd2 {[%emt 0:00:00]} a3 {[%emt 0:00:00]} 45. Ra2 {[%emt 0:00:00]} g6 {[%emt 0:00:00]} 46. Kf3 {[%emt 0:00:00]} Kg7 {[%emt 0:00:00]} 47. Ke3 {[%emt 0:00:00]} Ra4 {[%emt 0:00:00]} 48. Kf3 {[%emt 0:00:00]} Kf6 {[%emt 0:00:00]} 49. Ke3 {[%emt 0:00:00]} Ke6 {[%emt 0:00:00]} 50. Kd3 {[%emt 0:00:00]} Kd6 {[%emt 0:00:00]} 51. g4 {[%emt 0:00:00]} g5 {[%emt 0:00:00]} 52. fxg5 {[%emt 0:00:00]} hxg5 {[%emt 0:00:00]} 53. Ke3 {[%emt 0:00:00]} Kc5 {[%emt 0:00:00]} 54. Kd3 {[%emt 0:00:00]} Kb4 {[%emt 0:00:00]} 55. Kc2 {[%emt 0:00:00]} Kc4 {[%emt 0:00:00]} 56. e5 {[%emt 0:00:00]} Kd5 {[%emt 0:00:00]} 57. Kb3 {[%emt 0:00:00]} Rxg4 {[%emt 0:00:00]} 58. Rxa3 {[%emt 0:00:00]} Rg3+ {[%emt 0:00:00]} 0-1

[Event "WCCC U10 2019"]
[Site "Weifang"]
[Date "2019.08.29"]
[Round "8.4"]
[White "Vetokhin, Savva"]
[Black "Meng, Yihan"]
[Result "1-0"]
[ECO "B32"]
[WhiteElo "2016"]
[BlackElo "1793"]
[Annotator "NA"]
[PlyCount "189"]
[EventDate "2019.08.21"]
[EventType "swiss"]
[EventCountry "CHN"]
[SourceTitle "playchess.com"]
[Source "ChessBase"]
[SourceQuality "1"]
[TimeControl "40/5400+30:1800+30"]

1. e4 {[%emt 0:00:00]} c5 {[%emt 0:00:00]} 2. Nf3 {[%emt 0:00:00]} Nc6 {[%emt 0:00:00]} 3. d4 {[%emt 0:00:00]} cxd4 {[%emt 0:00:09]} 4. Nxd4 {[%emt 0:00:05]} e5 {[%emt 0:00:22]} 5. Nb5 {[%emt 0:00:49]} a6 {[%emt 0:00:27]} 6. Nd6+ {[%emt 0:00:06]} Bxd6 {[%emt 0:00:07]} 7. Qxd6 {[%emt 0:00:06]} Qe7 {[%emt 0:00:17]} 8. Qxe7+ {[%emt 0:03:26]} Ngxe7 {[%emt 0:00:10]} 9. Na3 {[%emt 0:01:06] B32: Sicilian: Löwenthal and Kalashnikov Variations} (9. Nc3 d5 10. Bd2 Be6 11. O-O-O O-O-O 12. f3 Kc7 13. b3 f6 14. exd5 Nxd5 15. Nxd5+ Rxd5 16. Bd3 h6 17. Be4 Rd7 18. Bc3 {½-½ (73) Carlsen,M (2837)-Radjabov,T (2788) Astana 2012}) 9... b5 $146 {[%emt 0:01:44]} ({Predecessor:} 9... d5 10. exd5 Nxd5 11. Bd2 Be6 12. O-O-O Rc8 13. b3 O-O 14. Kb2 Rfd8 15. Bd3 Rd7 16. Rhe1 Rcd8 {½-½ (65) Nabaty,T (2603)-Radovanovic,M (2379) Belgrade 2015}) 10. c3 {[%emt 0:01:11]} d5 {[%emt 0:01:09]} 11. exd5 {[%emt 0:00:39]} Nxd5 {[%emt 0:00:20]} 12. Be2 {[%emt 0:02:11]} O-O {[%emt 0:00:50]} 13. O-O {[%emt 0:00:15]} Be6 {[%emt 0:01:48]} 14. Nc2 {[%emt 0:01:45]} f5 {[%emt 0:02:19]} 15. Rd1 {[%emt 0:05:48]} Rfd8 {[%emt 0:02:26]} 16. Bg5 {[%emt 0:02:29]} Rd7 {[%emt 0:00:16]} 17. a4 {[%emt 0:01:55]} bxa4 {[%emt 0:02:45]} 18. Rxa4 {[%emt 0:01:29]} h6 {[%emt 0:06:49]} 19. Bc1 {[%emt 0:02:31]} Rad8 {[%emt 0:03:33]} 20. Re1 {[%emt 0:09:23]} Nc7 {[%emt 0:00:21]} 21. Ne3 {[%emt 0:01:05]} a5 {[%emt 0:05:50]} 22. Nc4 {[%emt 0:06:11]} Rd5 {[%emt 0:01:52]} 23. Be3 {[%emt 0:03:26]} Na8 {[%emt 0:03:03]} ({Black should play} 23... Rb8) 24. Bf1 {[%emt 0:15:48]} Rd1 {[%emt 0:03:30]} 25. Ra1 {[%emt 0:00:35]} Rxa1 {[%emt 0:01:15]} 26. Rxa1 {[%emt 0:00:10]} f4 {[%emt 0:00:04]} 27. Bc5 {[%emt 0:00:23]} Kh7 {[%emt 0:03:06]} 28. b4 {[%emt 0:04:39]} axb4 {[%emt 0:01:37]} 29. cxb4 {[%emt 0:00:05]} Nc7 {[%emt 0:02:47]} 30. Na5 {[%emt 0:04:38]} Nxa5 {[%emt 0:01:38]} 31. bxa5 {[%emt 0:00:07]} Na8 {[%emt 0:01:09]} 32. a6 {[%emt 0:00:54]} Rd7 {[%emt 0:01:10]} 33. Bb5 {[%emt 0:01:32]} Rd2 {[%emt 0:06:40]} 34. Bb4 {[%emt 0:02:03]} Rb2 {[%emt 0:17:26]} 35. Bc6 {[%emt 0:01:29]} Nc7 {[%emt 0:00:24]} 36. Bc3 {[%emt 0:00:25]} Rb6 {[%emt 0:00:47]} 37. Be4+ {[%emt 0:00:06]} g6 {[%emt 0:00:22]} 38. a7 {[%emt 0:00:09]} Bf5 {[%emt 0:01:17]} 39. a8=Q {[%emt 0:00:27]} Nxa8 {[%emt 0:00:08]} 40. Bxa8 {[%emt 0:00:04]} Rb5 {[%emt 0:01:41]} 41. Re1 {[%emt 0:30:24]} e4 {[%emt 0:30:29]} 42. Bxe4 {[%emt 0:00:04]} Bxe4 {[%emt 0:00:05]} 43. Rxe4 {[%emt 0:00:04]} Rb1+ {[%emt 0:00:31]} 44. Re1 {[%emt 0:00:08]} Rb7 {[%emt 0:00:11]} 45. Bf6 {[%emt 0:00:16]} Rb6 {[%emt 0:00:38]} 46. Bd4 {[%emt 0:00:37]} Rb7 {[%emt 0:01:35]} 47. h4 {[%emt 0:00:29]} Rf7 {[%emt 0:01:04]} 48. Bc5 {[%emt 0:00:27]} Rf5 {[%emt 0:00:14]} 49. Re7+ {[%emt 0:00:16]} Kg8 {[%emt 0:00:20]} 50. Re8+ {[%emt 0:00:19]} Kg7 {[%emt 0:00:26]} 51. Bd4+ {[%emt 0:00:03]} Kf7 {[%emt 0:00:07]} 52. Rh8 {[%emt 0:00:07]} Rh5 {[%emt 0:00:32]} 53. g3 {[%emt 0:00:32]} fxg3 {[%emt 0:00:05]} 54. fxg3 {[%emt 0:00:03]} Rd5 {[%emt 0:00:40]} 55. Rh7+ {[%emt 0:01:44]} Ke6 {[%emt 0:00:14]} 56. Rxh6 {[%emt 0:00:16]} Rxd4 {[%emt 0:00:19]} 57. Rxg6+ {[%emt 0:00:03]} Kf5 {[%emt 0:00:47]} 58. Rg5+ {[%emt 0:00:03]} Kf6 {[%emt 0:00:06]} 59. Kg2 {[%emt 0:00:05]} Ra4 {[%emt 0:00:24]} 60. Rb5 {[%emt 0:00:07]} Kg6 {[%emt 0:00:48]} 61. Kh3 {[%emt 0:00:44]} Rc4 {[%emt 0:00:29]} 62. Rb3 {[%emt 0:00:31]} Rc1 {[%emt 0:01:14]} 63. g4 {[%emt 0:00:18]} Rh1+ {[%emt 0:00:18]} 64. Kg3 {[%emt 0:00:02]} Rg1+ {[%emt 0:00:14]} 65. Kf4 {[%emt 0:00:03]} Rf1+ {[%emt 0:00:29]} 66. Rf3 {[%emt 0:00:03]} Ra1 {[%emt 0:00:18]} 67. h5+ {[%emt 0:00:23]} Kh6 {[%emt 0:00:05]} 68. Kg3 {[%emt 0:01:37]} Kg5 {[%emt 0:00:16]} 69. Rf5+ {[%emt 0:00:06]} Kh6 {[%emt 0:00:05]} 70. Rf6+ {[%emt 0:00:03]} Kg7 {[%emt 0:00:09]} 71. Rg6+ {[%emt 0:00:03]} Kh7 {[%emt 0:00:04]} 72. Kh4 {[%emt 0:00:07]} Rb1 {[%emt 0:00:26]} 73. Ra6 {[%emt 0:00:06]} Rb4 {[%emt 0:00:16]} 74. h6 {[%emt 0:00:23]} Rb1 {[%emt 0:00:10]} 75. Kh5 {[%emt 0:00:04]} Rh1+ {[%emt 0:00:50]} 76. Kg5 {[%emt 0:00:01]} Rb1 {[%emt 0:00:10]} 77. Ra7+ {[%emt 0:00:04]} Kh8 {[%emt 0:00:08]} 78. Kh5 {[%emt 0:00:05]} Rb6 {[%emt 0:00:55]} 79. g5 {[%emt 0:00:04]} Rb5 {[%emt 0:00:06]} 80. Rf7 {[%emt 0:00:14]} Kg8 {[%emt 0:00:37]} 81. Re7 {[%emt 0:01:26]} Ra5 {[%emt 0:01:25]} 82. Kg6 {[%emt 0:00:25]} Ra6+ {[%emt 0:00:09]} 83. Kf5 {[%emt 0:00:05]} Ra5+ {[%emt 0:01:36]} 84. Re5 {[%emt 0:00:03]} Ra1 {[%emt 0:01:12]} 85. g6 {[%emt 0:00:19]} Rf1+ {[%emt 0:00:07]} 86. Kg5 {[%emt 0:00:05]} Rg1+ {[%emt 0:01:11]} 87. Kf6 {[%emt 0:00:06]} Rf1+ {[%emt 0:00:09]} 88. Rf5 {[%emt 0:00:01]} Rxf5+ {[%emt 0:00:12]} 89. Kxf5 {[%emt 0:00:06]} Kf8 {[%emt 0:00:09]} 90. Kf6 {[%emt 0:00:02]} Kg8 {[%emt 0:00:05]} 91. g7 {[%emt 0:00:05]} Kh7 {[%emt 0:00:04]} 92. Kf7 {[%emt 0:00:04]} Kxh6 {[%emt 0:00:05]} 93. g8=Q {[%emt 0:00:06]} Kh5 {[%emt 0:00:05]} 94. Qg3 {[%emt 0:00:06]} Kh6 {[%emt 0:00:04]} 95. Qg6# {[%emt 0:00:05]} 1-0

[Event "WCCC U10 2019"]
[Site "Weifang"]
[Date "2019.08.29"]
[Round "8.5"]
[White "Wei, Jianzhou"]
[Black "Nguyen, Anh Khoa"]
[Result "1-0"]
[ECO "E83"]
[WhiteElo "1656"]
[BlackElo "1341"]
[Annotator "NA"]
[PlyCount "87"]
[EventDate "2019.08.21"]
[EventType "swiss"]
[EventCountry "CHN"]
[SourceTitle "playchess.com"]
[Source "ChessBase"]
[SourceQuality "1"]
[TimeControl "40/5400+30:1800+30"]

1. d4 {[%emt 0:00:00]} Nf6 {[%emt 0:00:00]} 2. c4 {[%emt 0:00:00]} g6 {[%emt 0:00:00]} 3. Nc3 {[%emt 0:00:00]} Bg7 {[%emt 0:00:07]} 4. e4 {[%emt 0:00:00]} d6 {[%emt 0:00:09]} 5. f3 {[%emt 0:00:03]} O-O {[%emt 0:00:43]} 6. Be3 {[%emt 0:00:04]} Nc6 {[%emt 0:00:41]} 7. Nge2 {[%emt 0:00:17]} a6 {[%emt 0:00:47]} 8. Qd2 {[%emt 0:00:12]} Na5 {[%emt 0:00:44]} 9. Nc1 {[%emt 0:01:50]} Nd7 {[%emt 0:03:38]} 10. Na4 {[%emt 0:10:30]} c5 {[%emt 0:11:12]} 11. Rb1 {[%emt 0:06:55]} cxd4 {[%emt 0:08:15]} 12. Bxd4 {[%emt 0:00:16]} Bxd4 {[%emt 0:00:22]} 13. Qxd4 {[%emt 0:00:11]} Nc6 {[%emt 0:00:15]} 14. Qd2 {[%emt 0:01:06]} f5 {[%emt 0:12:02]} 15. exf5 {[%emt 0:04:12]} Rxf5 {[%emt 0:00:50]} 16. Bd3 {[%emt 0:00:58]} Rf6 {[%emt 0:06:18]} 17. Be4 {[%emt 0:03:53]} Nde5 {[%emt 0:03:09]} 18. O-O {[%emt 0:02:45]} Kg7 {[%emt 0:05:12]} 19. b3 {[%emt 0:02:04]} Be6 {[%emt 0:05:53]} 20. Ne2 {[%emt 0:01:14]} Bg8 {[%emt 0:09:06]} 21. Nac3 {[%emt 0:02:45]} e6 {[%emt 0:02:56]} 22. Bxc6 {[%emt 0:07:53]} Qb6+ {[%emt 0:12:38]} 23. Kh1 {[%emt 0:00:37]} Nxc6 {[%emt 0:01:16]} 24. Ne4 {[%emt 0:00:48]} Rff8 {[%emt 0:02:39]} 25. Qc3+ {[%emt 0:03:11]} e5 {[%emt 0:01:41]} 26. Nxd6 {[%emt 0:00:08]} Rad8 {[%emt 0:03:29]} 27. c5 {[%emt 0:00:35]} Qc7 {[%emt 0:01:30]} 28. Rfd1 {[%emt 0:03:32]} Rf6 {[%emt 0:01:52]} 29. Qe3 {[%emt 0:04:08]} Be6 {[%emt 0:02:17]} 30. Ng3 {[%emt 0:02:22]} h6 {[%emt 0:01:25]} 31. Nge4 {[%emt 0:01:23]} Rff8 {[%emt 0:01:09]} 32. Rd2 {[%emt 0:00:46]} Rd7 {[%emt 0:00:31]} 33. b4 {[%emt 0:00:15]} Rfd8 {[%emt 0:01:25]} 34. a4 {[%emt 0:00:17]} g5 {[%emt 0:01:35]} 35. b5 {[%emt 0:04:31]} axb5 {[%emt 0:00:25]} 36. axb5 {[%emt 0:00:15]} Ne7 {[%emt 0:00:30]} 37. Nxg5 {[%emt 0:01:05]} hxg5 {[%emt 0:00:13]} 38. Qxe5+ {[%emt 0:00:04]} Kh7 {[%emt 0:00:31]} 39. Qxe6 {[%emt 0:00:25]} Qxc5 {[%emt 0:00:34]} 40. Qf7+ {[%emt 0:00:33]} Kh8 {[%emt 0:00:48]} 41. Ne8 {[%emt 0:30:14]} Qe5 {[%emt 0:31:08]} 42. Rxd7 {[%emt 0:00:32]} Rxd7 {[%emt 0:00:14]} 43. Nf6 {[%emt 0:00:11]} Qf5 {[%emt 0:00:35]} 44. Qf8+ {[%emt 0:00:03]} 1-0